{"text_format":"1","workbook":"xlsx","n_sheets":3,"sheets":["التحاليل","الطباعة","الترحيل"],"not_rendered":{"charts":0,"images":3,"macros":1,"external_links":0,"defined_names":10,"comments":0,"pivot_tables":0},"unopened":[],"bounds":{"document_bytes":16777216,"sheet_cells":100000,"rows_first":2000,"rows_last":500,"rows_between":2000,"halvings":0,"cell_chars":16384,"cell_head_chars":4096},"cells_cut":0,"cells_raw":0,"read":"whole","date_system":"1900"}

{"sheet":"التحاليل","index":0,"n_rows":27,"n_cols":29,"rows_kept":27,"cut":false,"hidden":false,"merged":[[3,27,3,28],[0,0,0,1],[0,2,0,4],[1,0,1,1],[1,2,1,4],[2,0,2,1],[2,2,2,4],[3,0,3,1],[3,2,3,3],[3,4,3,5],[3,6,3,7],[3,8,3,9]]}
["تاريخ التحليل",null,{"$f":"TODAY()","v":"2019-01-23"}]
["اسم المريض",null,"محمود كيمل"]
["العيادة",null,"العينية"]
["الدمويات",null,"الكيمياء",null,"مصليات",null,"بول وراسب",null,"فحص براز",null,null,null,null,null,null,null,null,null,null,null,null,null,null,null,null,null,null,"تحاليل جاهزة"]
["Hemoglobin - Hb",null,"Glucose",null,"Widal Test - O","Negative","Colore",null,"Apperance","Soft",null,null,null,null,null,null,null,null,null,null,null,null,null,null,null,null,null,"إيجابي","Positive"]
["Hematocrite - Ht",null,"Urea",null,"Widal Test - H","Negative","Reaction",null,"Color","Brown",null,null,null,null,null,null,null,null,null,null,null,null,null,null,null,null,null,"سلبي","Negative"]
["White Blood Count ",null,"Creatinine",null,"Widal Test - A","Negative","SG",null,"W.B.C ( H.P.F )","1 - 2",null,null,null,null,null,null,null,null,null,null,null,null,null,null,null,null,null,"الزمرة","O + Rh : Positive"]
["Neutrophilis",null,"Sodium ( NA )","140","Widal Test - B","Negative","Nitrat",null,"R.B.C ( H.P.F )","2 - 3",null,null,null,null,null,null,null,null,null,null,null,null,null,null,null,null,null,"الزمرة","A + Rh : Positive"]
["Lymphocytes",null,"Potassium ( K )","3.5","Wright Test - A","1/320","Protien",null,"Cysts","Not Seen",null,null,null,null,null,null,null,null,null,null,null,null,null,null,null,null,null,"الزمرة","B + Rh : Positive"]
["Monocytes",null,"Calcium ( Ca )","12.1","Wright Test - M","1/320","Glucose",null,"Ovals","Not Seen",null,null,null,null,null,null,null,null,null,null,null,null,null,null,null,null,null,"الزمرة","AB + Rh : Positive"]
["Eosinophilis",null,"Magnizum ( Mg )","160","CRP",null,"Cetones",null,"Trophozyte","Not Seen",null,null,null,null,null,null,null,null,null,null,null,null,null,null,null,null,null,"الزمرة","O - Rh : Negative"]
["Basophilis",null,"Iron ( Fe )","74","ASLO",null,"Urobillinogen",null,"Candida","+1",null,null,null,null,null,null,null,null,null,null,null,null,null,null,null,null,null,"الزمرة","A - Rh : Negative"]
["Platelets",null,"Cholestrol",null,"RF","Negative","Billirubin",null,"Occult Blood","Negative",null,null,null,null,null,null,null,null,null,null,null,null,null,null,null,null,null,"الزمرة","B - Rh : Negative"]
["Rteiculocytes",null,"Trig.",null,null,"                                                                                ","Blood Sang",null,null,null,null,null,null,null,null,null,null,null,null,null,null,null,null,null,null,null,null,"الزمرة","AB - Rh : Negative"]
["Bleeding Time",null,"Uric Acid ( UA )",null,null,null,"W.B.C ( H.P.F )",null,null,null,null,null,null,null,null,null,null,null,null,null,null,null,null,null,null,null,null,"فيدال ورايت","Negative"]
["Coagulation Time",null,"SGPT",null,null,null,"R.B.C ( H.P.F )",null,null,null,null,null,null,null,null,null,null,null,null,null,null,null,null,null,null,null,null,"فيدال ورايت","1\\40"]
["ESR after 1 Hrs",null,"SGOT",null,null,null,"Epethelial Cells",null,null,null,null,null,null,null,null,null,null,null,null,null,null,null,null,null,null,null,null,"فيدال ورايت","1\\80"]
["PT - Activity",null,"LDH",null,null,null,"Cast",null,null,null,null,null,null,null,null,null,null,null,null,null,null,null,null,null,null,null,null,"فيدال ورايت","1\\160"]
["INR",null,"HDL",null,null,null,"Mucus",null,null,null,null,null,null,null,null,null,null,null,null,null,null,null,null,null,null,null,null,"فيدال ورايت","1\\320"]
["PTTK",null,"LDL",null,null,null,"Crystals",null,null,null,null,null,null,null,null,null,null,null,null,null,null,null,null,null,null,null,null,"فيدال ورايت","1\\640"]
["Coombs - Direct",null,"Amylase",null,null,null,"Bacteria",null,null,null,null,null,null,null,null,null,null,null,null,null,null,null,null,null,null,null,null,"العيادات","القلبية"]
["Coombs - Indirect",null,"Total Protien",null,null,null,"Candida",null,null,null,null,null,null,null,null,null,null,null,null,null,null,null,null,null,null,null,null,null,"العينية"]
["Blood Group","AB - Rh : Negative","Albumin",null,null,null,null,null,null,null,null,null,null,null,null,null,null,null,null,null,null,null,null,null,null,null,null,null,"الصدرية"]
[null,null,"Total Billirubin",null,null,null,null,null,null,null,null,null,null,null,null,null,null,null,null,null,null,null,null,null,null,null,null,null,"الهضمية"]
[null,null,"Direct Billirubin",null,null,null,null,null,null,null,null,null,null,null,null,null,null,null,null,null,null,null,null,null,null,null,null,null,"العصبية"]
[null,null,"Troponin T",null,null,null,null,null,null,null,null,null,null,null,null,null,null,null,null,null,null,null,null,null,null,null,null,null,"الغدد والهرمونات"]
[null,null,"HbA1c","4.5"]

{"sheet":"الطباعة","index":1,"n_rows":45,"n_cols":6,"rows_kept":45,"cut":false,"hidden":false,"merged":[[0,0,3,0],[4,0,4,4],[28,1,28,2]]}
["الجمهورية العربية السورية\nوزارة التعليم العالي - جامعة حلب\nمشفى حلب الجامعي\nقسم المخبر - مخبر العيادات\n",null,"اسم المريض",{"$f":"(التحاليل!C2)","v":"محمود كيمل"}]
[null,null,"التاريخ",{"$f":"(التحاليل!C1)","v":"2019-01-23"}]
[null,null,"العيادة",{"$f":"(التحاليل!C3)","v":"العينية"}]
[]
["تـقـــريــــــــــر الـتحــــالـيـــــــــــل الـطـبيـــــــــــــــة"]
[null,null,null,"Biochemistry",null,{"$f":"IF(COUNTA(C9:C15)>0,1,\"\")","v":1}]
[null,null,null,null,null,{"$f":"IF(OR(C7=\"\",C7=0),\"\",1)","v":""}]
["Remarks","Normal Value","Result","Test",null,{"$f":"IF(COUNTA(C9:C15)>0,1,\"\")","v":1}]
[null,"145 - 137",{"$f":"(التحاليل!D8)","v":"140"},"Sodium ( NA )",null,{"$f":"IF(OR(C9=\"\",C9=0),\"\",1)","v":1}]
[null,"3.5 - 55",{"$f":"(التحاليل!D9)","v":"3.5"},"Potassium ( K )",null,1]
[null,"1.1 - 1.3",{"$f":"(التحاليل!D10)","v":"12.1"},"Calcium ( Ca )",null,1]
[null,"1.7 - 2.5",{"$f":"(التحاليل!D11)","v":"160"},"Magnizum ( Mg )",null,1]
[null,"M( 60 - 160 ) -  F(37 - 140 )",{"$f":"(التحاليل!D12)","v":"74"},"Iron ( Fe )",null,1]
[null,"4.5 - 6.5",{"$f":"(التحاليل!D27)","v":"4.5"},"HbA1c",null,{"$f":"IF(OR(C14=\"\",C14=0),\"\",1)","v":1}]
[null,null,null,null,null,{"$f":"IF(OR(C15=\"\",C15=0),\"\",1)","v":""}]
[null,null,null,"Serology",null,{"$f":"IF(COUNTA(C19:C26)>0,1,\"\")","v":1}]
[null,null,null,null,null,""]
["Remarks","Normal Value","Result","Test",null,{"$f":"IF(COUNTA(C19:C26)>0,1,\"\")","v":1}]
[null,"Negative",{"$f":"(التحاليل!F5)","v":"Negative"},"Widat Anti O",null,1]
[null,"Negative",{"$f":"(التحاليل!F6)","v":"Negative"},"Widat Anti H",null,1]
[null,"Negative",{"$f":"(التحاليل!F7)","v":"Negative"},"Widat Anti A",null,1]
[null,"Negative",{"$f":"(التحاليل!F8)","v":"Negative"},"Widat Anti B",null,1]
[null,"Negative",{"$f":"(التحاليل!F9)","v":"1/320"},"Wright Anti A",null,1]
[null,"Negative",{"$f":"(التحاليل!F10)","v":"1/320"},"Wright Anti M",null,1]
[null,"Negative",{"$f":"(التحاليل!F13)","v":"Negative"},"RF",null,1]
[null,null,null,null,null,""]
[null,null,null,"Blood Groupe",null,{"$f":"IF(OR(B29=\"\",B29=0),\"\",1)","v":1}]
[null,null,null,null,null,""]
[null,{"$f":"(التحاليل!B23)","v":"AB - Rh : Negative"},null,"Result",null,{"$f":"IF(OR(B29=\"\",B29=0),\"\",1)","v":1}]
[null,null,null,null,null,{"$f":"IF(COUNTA(B30:C30)>0,1,\"\")","v":""}]
[null,null,null,"Stool Examination",null,{"$f":"IF(COUNTA(C34:C42)>0,1,\"\")","v":1}]
[null,null,null,null,null,""]
["Remarks","Normal Value","Result","Test",null,{"$f":"IF(COUNTA(C34:C42)>0,1,\"\")","v":1}]
[null,"Soft",{"$f":"(التحاليل!J5)","v":"Soft"},"Apperance",null,1]
[null,"Brown",{"$f":"(التحاليل!J6)","v":"Brown"},"Color",null,1]
[null,"1 - 2     H.P.F",{"$f":"(التحاليل!J7)","v":"1 - 2"},"W.B.C",null,1]
[null,"0 - 1     H.P.F",{"$f":"(التحاليل!J8)","v":"2 - 3"},"R.B.C",null,1]
[null,"Not Seen",{"$f":"(التحاليل!J9)","v":"Not Seen"},"Cysts",null,1]
[null,"Not Seen",{"$f":"(التحاليل!J10)","v":"Not Seen"},"Ovals",null,1]
[null,"Not Seen",{"$f":"(التحاليل!J11)","v":"Not Seen"},"Trophozyte",null,1]
[null,"up to ( +1 )",{"$f":"(التحاليل!J12)","v":"+1"},"Candida",null,1]
[null,null,null,null,null,""]
[null,null,null,"Occult Blood",null,{"$f":"IF(OR(C45=\"\",C45=0),\"\",1)","v":1}]
[null,null,null,null,null,""]
[null,"Negative",{"$f":"(التحاليل!J13)","v":"Negative"},"Result",null,{"$f":"IF(OR(C45=\"\",C45=0),\"\",1)","v":1}]

{"sheet":"الترحيل","index":2,"n_rows":3,"n_cols":26,"rows_kept":3,"cut":false,"hidden":false,"merged":[]}
["اسم المريض","التاريخ","العيادة","NA","K","Ca","Mg","Fe","HbA1C","Anti O","Anti H","Anti A","Anti B","Anti A","Anti M","RF","الزمرة","المظهر","اللون","WBC","RBC","Cysts","Ovals","Ttophozyte","Candida","Occult Blood"]
["محمود كيمل",43388,"العينية","140","3.5","12.1","160","74","4.5","Negative","Negative","Negative","Negative","1/320","1/320","Negative","AB - Rh : Negative","Soft","Brown","1 - 2","2 - 3","Not Seen","Not Seen","Not Seen","+1","Negative"]
["محمود كيمل",43486,"العينية","140","3.5","12.1","160","74","4.5","Negative","Negative","Negative","Negative","1/320","1/320","Negative","AB - Rh : Negative","Soft","Brown","1 - 2","2 - 3","Not Seen","Not Seen","Not Seen","+1","Negative"]